[Event "Reykjavik Open 2025"]
[Site "Reykjavik"]
[Date "2025.04.10"]
[Round "3.28"]
[White "Maze, Sebastien"]
[Black "Ronka, Erik"]
[Result "1-0"]
[Annotator "TA"]
[ECO "C24"]
[WhiteElo "2557"]
[BlackElo "2295"]
[PlyCount "121"]
[EventDate "2025.04.09"]
[EventType "swiss"]
[EventCountry "ISL"]
[SourceTitle "playchess.com"]
[Source "ChessBase"]
[SourceQuality "1"]
[TimeControl "40/5400+30:1800+30"]

{[%evp 11,121,36,45,43,38,29,35,22,27,0,17,4,10,0,17,2,2,-14,0,0,56,26,0,0,0,0,0,12,22,43,22,43,208,41,27,-19,263,18,37,0,0,0,0,9,95,102,89,76,110,93,108,0,87,80,72,0,0,-24,391,35,44,49,42,15,60,95,101,0,101,98,96,0,45,0,3,8,66,78,79,79,79,72,58,49,56,75,54,52,243,237,229,239,264,267,335,279,633,637,633,495,502,502,896,877,1218,1058,6319,5360,5085,4926,7192,6391]} 1. e4 {[%emt 0:00:02]} e5 {[%emt 0:00:13]} 2. Nf3 {[%emt 0:00:05]} Nc6 {[%emt 0:00:07]} 3. Bc4 {[%emt 0:00:03]} Nf6 {[%emt 0:00:07]} 4. d3 {[%emt 0:00:03]} d5 {[%emt 0:00:30]} 5. exd5 {[%emt 0:00:04]} Nxd5 {[%emt 0:00:06]} 6. O-O {[%emt 0:00:48]} Bc5 {[%emt 0:01:09]} 7. Nbd2 {[%emt 0:07:34] C24: Bishop's Opening: 2...Nf6.} O-O {[%emt 0:01:35]} 8. Re1 {[%emt 0:00:35]} f6 {[%emt 0:07:37] 8...Nf6 is setting a new trend.} 9. Ne4 {[%emt 0:04:36] White is slightly better.} Bb6 {[%emt 0:07:26]} 10. a4 {[%emt 0:19:10][%cal Ob2b4]} a5 {[%emt 0:11:39]} 11. c3 {[%emt 0:04:33]} Kh8 {[%emt 0:01:19]} 12. Qb3 {[%emt 0:00:29]} Nce7 $146 {[%emt 0:04:53]} (12... Nde7 13. Be3 Bxe3 14. Rxe3 b6 15. Rae1 Bg4 16. Ng3 Nf5 17. Nxf5 Bxf5 18. Nh4 Ne7 19. Nxf5 Nxf5 {1-0 Perez Ponsa,F (2554)-Ambartsumova,K (2382) Titled Tuesday intern op 30th Nov blitz 2021 (2)}) 13. h3 {[%emt 0:05:21]} c6 {[%emt 0:08:50]} 14. Qa3 {[%emt 0:11:16]} Bc7 {[%emt 0:02:58]} 15. d4 {[%emt 0:07:08]} f5 {[%emt 0:09:21]} (15... h6 $11) 16. Bxd5 $1 $14 {[%emt 0:00:13]} cxd5 {[%emt 0:03:58]} 17. Bg5 $1 {[%emt 0:02:43]} Re8 {[%emt 0:07:30]} (17... fxe4 $2 18. Bxe7 Qe8 19. Bxf8 $18 (19. Nxe5 Rf5 $16)) 18. Nf6 {[%emt 0:04:28]} gxf6 {[%emt 0:03:14]} 19. Bxf6+ {[%emt 0:00:01]} Kg8 {[%emt 0:00:10]} 20. dxe5 {[%emt 0:00:03]} Qd7 $1 {[%emt 0:04:39] Inhibits c4.} 21. c4 {[%emt 0:01:32][%mdl 1024] White has compensation.} Ng6 $2 {[%emt 0:01:43]} (21... d4 $1 $14) 22. Rad1 $2 {[%emt 0:02:34]} (22. cxd5 $1 $18 {Threatens to win with d6.} Bd8 (22... Qxd5 $2 23. Rac1 $18) 23. Bxd8 Qxd8 24. Rad1) 22... d4 $1 {[%emt 0:02:02]} 23. h4 {[%emt 0:05:59]} (23. b3 $142) 23... f4 $2 {[%emt 0:09:14][%mdl 8192]} (23... Ra6 $11) 24. h5 $2 {[%emt 0:00:51]} ({White must play} 24. Rxd4 $18 Qe6 25. h5) 24... Nf8 $11 {[%emt 0:00:03]} 25. Nxd4 {[%emt 0:02:11][%cal Oe5e6]} Qg4 {[%emt 0:00:26]} 26. Qc5 {[%emt 0:07:30]} Bd8 {[%emt 0:08:09]} 27. Qd5+ {[%emt 0:05:30]} Be6 {[%emt 0:00:03]} (27... Ne6 $1 $11) 28. Qxb7 $16 {[%emt 0:03:24] White attacks} Bxf6 {[%emt 0:01:32]} 29. exf6 {[%emt 0:00:02] White has strong rooks and is better} Bf7 {[%emt 0:01:16]} 30. Nf3 $1 {[%emt 0:03:00]} Qxh5 {[%emt 0:01:12]} 31. Re7 {[%emt 0:01:14]} (31. Rxe8 $1 $16 Rxe8 32. Rd5) 31... Rab8 {[%emt 0:01:52] Black is weak on the dark squares} (31... Qg6 $1 $11) 32. Qc7 {[%emt 0:01:01][%cal Od1d5] White is much more active.} Rbc8 {[%emt 0:00:08] [#]} 33. Qxf4 {[%emt 0:00:35]} (33. Qd6 $1 $16) 33... Ng6 $11 {[%emt 0:01:18]} 34. Qg3 {[%emt 0:00:49][%cal Oe7f7]} Kf8 {[%emt 0:00:36][%mdl 8192] [#]} (34... Rxc4 $11 {and Black is okay.} 35. Rde1 Rd8) 35. Rdd7 $2 {[%emt 0:01:56]} Rxe7 $14 {[%emt 0:00:23]} 36. fxe7+ {[%emt 0:00:08] White plays in the center} Nxe7 {[%emt 0:00:33]} 37. Qd6 {[%emt 0:00:22]} Qc5 {[%emt 0:00:29]} 38. Qf6 {[%emt 0:00:38]} Ke8 {[%emt 0:00:33]} 39. Rb7 {[%emt 0:00:45]} ({White should play} 39. Ne5 $16 {[%csl Ge5][%cal Rf6f7]} Bxc4 40. Rd3 Bxd3 41. Qh8+ Ng8 42. Qxg8+ (42. Nxd3 $2 Qd5 $19) 42... Ke7 43. Qf7+ (43. Nxd3 $2 Rxg8 44. Nxc5 Rb8 $19) 43... Kd6 44. Nxd3) 39... Rd8 {[%emt 0:00:33]} (39... Bxc4 $11 {keeps the balance.} 40. Ne5 Rc7 41. Rb8+ Rc8) 40. Ne5 $16 {[%emt 0:00:37]} Bg8 {[%emt 0:00:32]} 41. Qg7 {[%emt 0:07:42]} (41. b4 $16 axb4 42. a5) 41... Be6 {[%emt 0:07:53]} 42. b3 {[%emt 0:10:09]} (42. Qxh7 $2 {loses.} Rd1+ 43. Kh2 Qxe5+ $19) 42... Ng6 $1 {[%emt 0:09:14] ...Rd1+ would now be deadly. Repels Qf6} 43. Rb5 $40 {[%emt 0:00:07][%mdl 128] Black needs to defend precisely.} Qd4 {[%emt 0:01:52]} (43... Qf8 $11 44. Qxf8+ (44. Qxh7 $2 Rd1+ 45. Kh2 Qf4+ 46. g3 Qxf2#) 44... Kxf8) 44. Qf6 $1 $14 {[%emt 0:05:37] Some like it hot} (44. Rxa5 {leads to mate.} Qd1+ 45. Kh2 Qh5+ 46. Kg3 Qh4+ 47. Kf3 Qf4+ 48. Ke2 Qe4+ 49. Kf1 Rd1#) 44... Qd1+ {[%emt 0:08:02]} 45. Kh2 {[%emt 0:00:01]} Qh5+ {[%emt 0:00:17]} 46. Kg3 {[%emt 0:00:01]} Qf5 {[%emt 0:01:15]} 47. Qxf5 {[%emt 0:00:03]} Bxf5 {[%emt 0:00:02]} 48. Rxa5 {[%emt 0:00:29]} Bc2 {[%emt 0:02:48]} 49. b4 {[%emt 0:01:26]} Nxe5 $2 {[%emt 0:01:09]} (49... Bb3 $1 $14) 50. Rxe5+ {[%emt 0:00:04][%mdl 4096] Endgame KRB-KR} Kf7 {[%emt 0:00:05]} 51. a5 {[%emt 0:00:58][%cal Ba4a5,Ba5a6][%mdl 32]} Bd3 {[%emt 0:01:11]} 52. Rc5 {[%emt 0:01:01]} Ke6 {[%emt 0:01:04]} 53. a6 {[%emt 0:02:13]} Be4 $2 {[%emt 0:00:32]} (53... Bf1 54. b5 Rg8+ 55. Kf4 Bxg2) 54. f3 $18 {[%emt 0:00:17] White is clearly winning.} Ba8 {[%emt 0:00:29]} 55. b5 {[%emt 0:00:55][%cal Bb4b5,Bb5b6,Bb6b7][%mdl 32]} Kd6 {[%emt 0:00:09]} 56. Rh5 {[%emt 0:00:04]} Rg8+ {[%emt 0:01:04]} (56... Rc8 $142 57. c5+ (57. Rxh7 Kc5 $18) 57... Rxc5 58. Rh6+ (58. Rxh7 Rxb5 59. a7 Ra5 $11) 58... Kc7 59. b6+ (59. Rxh7+ Kb6 $16) 59... Kd7 60. Rxh7+ Kd6) 57. Kf2 {[%emt 0:00:29]} Rc8 {[%emt 0:00:34]} 58. b6 {[%emt 0:00:10]} Bc6 {[%emt 0:00:04]} 59. c5+ {[%emt 0:00:13]} Ke6 {[%emt 0:00:39]} 60. Rxh7 {[%emt 0:00:20]} Bd5 {[%emt 0:00:11]} 61. b7 {[%emt 0:00:33] Weighted Error Value: White=0.29 (precise) /Black=0.83  Loses game:     	---       	Black=4      Missed win:     	White=3     	---        Mistake:       	White=5     	Black=7      Inaccurate:     	White=4     	Black=4      OK:         	White=10    	Black=17     Best:        	White=10    	Black=6      Strong:       	White=4     	Black=3} 1-0

[Event "Reykjavik Open 2025"]
[Site "Reykjavik"]
[Date "2025.04.10"]
[Round "3.29"]
[White "Friedel, Joshua"]
[Black "Xu, Yuanyuan"]
[Result "1-0"]
[Annotator "TA"]
[ECO "A07"]
[WhiteElo "2552"]
[BlackElo "2288"]
[PlyCount "71"]
[EventDate "2025.04.09"]
[EventType "swiss"]
[EventCountry "ISL"]
[SourceTitle "playchess.com"]
[Source "ChessBase"]
[SourceQuality "1"]
[TimeControl "40/5400+30:1800+30"]

{[%evp 14,71,20,8,37,0,43,16,15,30,33,7,58,36,54,71,80,76,85,54,74,84,68,58,89,96,78,97,135,111,300,316,311,301,296,289,290,268,362,311,526,515,531,551,604,615,624,631,604,403,626,603,617,593,720,722,719,710,710,706]} 1. Nf3 {[%emt 0:00:04]} Nf6 {[%emt 0:02:36]} 2. g3 {[%emt 0:00:19]} d5 {[%emt 0:03:08]} 3. Bg2 {[%emt 0:01:39]} g6 {[%emt 0:02:33]} 4. c4 {[%emt 0:02:24]} d4 {[%emt 0:03:01]} 5. b4 {[%emt 0:02:04][%cal Bb2b4,Bb4b5][%mdl 32]} c5 {[%emt 0:09:09]} 6. Bb2 {[%emt 0:05:06]} Bg7 {[%emt 0:00:42]} 7. O-O {[%emt 0:02:42]} O-O {[%emt 0:04:13]} 8. d3 {[%emt 0:01:35]} Nc6 {[%emt 0:05:12] A07: Réti Opening: New York and Capablanca Systems.} 9. b5 {[%emt 0:03:57]} Nb8 {[%emt 0:02:35]} 10. e3 {[%emt 0:03:11]} dxe3 {[%emt 0:02:43] The position is equal.} 11. fxe3 {[%emt 0:00:09]} a6 $146 {[%emt 0:02:56]} (11... Bf5 12. Ne1 Qc7 13. Nc3 Nbd7 14. Qe2 Rad8 15. Rd1 Ne5 16. Rd2 h5 17. h3 Qd7 {0-1 Mekhitarian,K (2554)-Mareco,S (2629) FIDE World Cup American Qual Final rapid 2021 (6)}) 12. a4 {[%emt 0:03:18]} Ng4 {[%emt 0:07:21]} (12... Bh6 $11) 13. Bxg7 $14 {[%emt 0:00:51]} Kxg7 {[%emt 0:00:02]} 14. Qe2 {[%emt 0:01:03]} axb5 {[%emt 0:00:24]} 15. cxb5 {[%emt 0:00:18]} Nd7 {[%emt 0:01:32]} 16. Nc3 {[%emt 0:07:51]} Nde5 {[%emt 0:02:25]} 17. Nxe5 {[%emt 0:01:37]} Nxe5 {[%emt 0:00:04]} 18. Nd5 {[%emt 0:01:15] White is more active.} Bf5 {[%emt 0:13:19]} 19. Qb2 {[%emt 0:06:55]} f6 {[%emt 0:01:44]} 20. d4 {[%emt 0:01:49]} cxd4 {[%emt 0:07:03]} 21. exd4 {[%emt 0:01:13]} Nd3 {[%emt 0:00:59] Loses the game.} (21... Nf7 $16 {keeps fighting.} 22. Rfc1 Qd6) 22. Qe2 $1 $18 {[%emt 0:08:58]} Nb4 {[%emt 0:04:26]} 23. Qxe7+ {[%emt 0:02:35]} (23. Nxb4 Qxd4+ 24. Kh1 Qxb4 $11) 23... Qxe7 {[%emt 0:00:09]} 24. Nxe7 {[%emt 0:00:03]} Bd3 {[%emt 0:00:31] [#]} 25. Rfd1 {[%emt 0:11:34]} (25. Bxb7 Ra7 26. Nc6 Rxb7 27. Nxb4 Bxf1 28. Kxf1 Rd8 $11) 25... Nc2 {[%emt 0:07:58]} 26. Rac1 {[%emt 0:02:54]} (26. Bxb7 Ra7 $18) 26... Nxd4 $2 {[%emt 0:01:58]} (26... Bc4 27. Rxc2 Bb3) 27. Rc7 {[%emt 0:00:53] and Nf5+ should not be overlooked} ({Stronger than} 27. Rxd3 Ne2+ (27... Rxa4 $2 {too greedy.} 28. Rb1 $18) 28. Kf1 Nxc1 $15) (27. Bxb7 Rxa4 28. Rc7 Nxb5 $11) 27... Ne6 {[%emt 0:06:53]} 28. Rxb7 {[%emt 0:04:38]} Rxa4 {[%emt 0:00:56]} 29. Rxd3 {[%emt 0:03:48]} Nc5 {[%emt 0:00:46] [#]} 30. Nf5+ $1 {[%emt 0:04:19]} Kg8 {[%emt 0:05:05] Hoping for ...Ra1+.} 31. Rg7+ {[%emt 0:01:18]} Kh8 {[%emt 0:00:04] [#]} 32. Rf7 $3 {[%emt 0:00:06][%cal Rf7f8][%mdl 512] White is clearly winning.} Ra1+ {[%emt 0:01:24]} 33. Bf1 {[%emt 0:00:04]} Rc8 {[%emt 0:00:15] [#]} 34. Rc7 $1 {[%emt 0:00:43][%mdl 512]} Raa8 {[%emt 0:02:32]} 35. Rxc8+ {[%emt 0:00:17]} Rxc8 {[%emt 0:00:02]} 36. Nd6 {[%emt 0:00:18] Weighted Error Value: White=0.05 (flawless) /Black=0.40  Loses game:     	---       	Black=1      Mistake:       	---       	Black=2      Inaccurate:     	White=4     	Black=4      OK:         	White=6     	Black=7      Best:        	White=6     	Black=1      Strong:       	White=1     	---} 1-0

[Event "Reykjavik Open 2025"]
[Site "Reykjavik"]
[Date "2025.04.10"]
[Round "3.30"]
[White "Sarkar, Justin"]
[Black "Cramling Bellon, Anna"]
[Result "1-0"]
[Annotator "ChessBase"]
[ECO "D32"]
[WhiteElo "2305"]
[BlackElo "2046"]
[PlyCount "49"]
[EventDate "2025.04.09"]
[EventType "swiss"]
[EventCountry "ISL"]
[SourceTitle "playchess.com"]
[Source "ChessBase"]
[SourceQuality "1"]
[TimeControl "40/5400+30:1800+30"]

1. Nf3 {[%emt 0:00:13]} d5 {[%emt 0:00:20]} 2. e3 {[%emt 0:00:31]} c5 {[%emt 0:00:31]} 3. b3 {[%emt 0:00:27]} Nc6 {[%emt 0:01:21]} 4. Bb5 {[%emt 0:00:52]} Bd7 {[%emt 0:08:46]} 5. O-O {[%emt 0:02:59]} Nf6 {[%emt 0:00:31]} 6. Bb2 {[%emt 0:00:38]} e6 {[%emt 0:01:57]} 7. c4 {[%emt 0:10:16]} Be7 {[%emt 0:13:39]} 8. cxd5 {[%emt 0:01:58]} exd5 {[%emt 0:00:12]} 9. d4 {[%emt 0:00:11]} cxd4 {[%emt 0:03:58]} 10. Nxd4 {[%emt 0:00:27]} O-O {[%emt 0:00:54]} 11. Nc3 {[%emt 0:24:43]} Rc8 {[%emt 0:11:58]} 12. Nxc6 {[%emt 0:11:53]} bxc6 {[%emt 0:02:39]} 13. Bd3 {[%emt 0:01:22]} Bd6 {[%emt 0:03:36]} 14. e4 {[%emt 0:03:37]} Bxh2+ {[%emt 0:17:36]} 15. Kxh2 {[%emt 0:00:24]} Ng4+ {[%emt 0:00:03]} 16. Kg3 {[%emt 0:00:47]} h5 {[%emt 0:06:26]} 17. Rh1 {[%emt 0:02:33]} g5 {[%emt 0:13:54]} 18. Qd2 {[%emt 0:08:10]} h4+ {[%emt 0:06:32]} 19. Kf3 {[%emt 0:00:11]} Qf6+ {[%emt 0:02:47]} 20. Ke2 {[%emt 0:00:09]} Nxf2 {[%emt 0:01:20]} 21. Nxd5 {[%emt 0:02:57]} Bg4+ {[%emt 0:00:11]} 22. Kf1 {[%emt 0:09:08]} Qxb2 {[%emt 0:01:43]} 23. Qxg5+ {[%emt 0:01:05]} Qg7 {[%emt 0:00:24]} 24. Nf6+ {[%emt 0:00:18]} Kh8 {[%emt 0:00:11]} 25. Rxh4+ {[%emt 0:00:08]} 1-0

[Event "Reykjavik Open 2025"]
[Site "Reykjavik"]
[Date "2025.04.10"]
[Round "3.31"]
[White "Arun, Nitish"]
[Black "Williams, Simon K"]
[Result "0-1"]
[Annotator "ChessBase"]
[ECO "A96"]
[WhiteElo "2004"]
[BlackElo "2451"]
[PlyCount "96"]
[EventDate "2025.04.09"]
[EventType "swiss"]
[EventCountry "ISL"]
[SourceTitle "playchess.com"]
[Source "ChessBase"]
[SourceQuality "1"]
[TimeControl "40/5400+30:1800+30"]

1. d4 {[%emt 0:00:03]} e6 {[%emt 0:00:08]} 2. c4 {[%emt 0:00:07]} f5 {[%emt 0:00:19]} 3. g3 {[%emt 0:00:15]} Nf6 {[%emt 0:00:15]} 4. Bg2 {[%emt 0:00:09]} Be7 {[%emt 0:00:54]} 5. Nf3 {[%emt 0:00:56]} Ne4 {[%emt 0:03:06]} 6. Nc3 {[%emt 0:04:08]} O-O {[%emt 0:07:20]} 7. O-O {[%emt 0:03:16]} Nxc3 {[%emt 0:15:26]} 8. bxc3 {[%emt 0:00:12]} d6 {[%emt 0:00:02]} 9. Qd3 {[%emt 0:10:02]} Nc6 {[%emt 0:01:34]} 10. e4 {[%emt 0:15:49]} e5 {[%emt 0:00:15]} 11. exf5 {[%emt 0:09:45]} Bxf5 {[%emt 0:00:28]} 12. Qd1 {[%emt 0:00:25]} Qe8 {[%emt 0:08:57]} 13. Be3 {[%emt 0:09:52]} Qh5 {[%emt 0:04:22]} 14. Nd2 {[%emt 0:05:45]} Qg6 {[%emt 0:01:26]} 15. Qb3 {[%emt 0:02:36]} Rab8 {[%emt 0:01:08]} 16. c5+ {[%emt 0:01:05]} Kh8 {[%emt 0:00:21]} 17. d5 {[%emt 0:06:38]} Na5 {[%emt 0:04:34]} 18. Qb4 {[%emt 0:00:11]} b6 {[%emt 0:00:04]} 19. c6 {[%emt 0:00:18]} Bg5 {[%emt 0:00:57]} 20. Bxg5 {[%emt 0:09:01]} Qxg5 {[%emt 0:00:09]} 21. Ne4 {[%emt 0:02:55]} Bxe4 {[%emt 0:01:30]} 22. Bxe4 {[%emt 0:00:08]} Qd2 {[%emt 0:04:50]} 23. a3 {[%emt 0:06:12]} Rf6 {[%emt 0:01:59]} 24. Rad1 {[%emt 0:01:11]} Qe2 {[%emt 0:02:52]} 25. Bd3 {[%emt 0:00:11]} Qh5 {[%emt 0:00:24]} 26. Rd2 {[%emt 0:01:14]} Rbf8 {[%emt 0:00:32]} 27. Be4 {[%emt 0:00:21]} Qg5 {[%emt 0:01:49]} 28. Re2 {[%emt 0:00:14]} h5 {[%emt 0:00:36]} 29. f3 {[%emt 0:03:39]} h4 {[%emt 0:00:43]} 30. g4 {[%emt 0:00:33]} h3 {[%emt 0:00:18]} 31. Ref2 {[%emt 0:02:31]} Rf4 {[%emt 0:02:59]} 32. Re1 {[%emt 0:01:11]} a6 {[%emt 0:03:29]} 33. a4 {[%emt 0:03:27]} R8f6 {[%emt 0:00:48]} 34. Kf1 {[%emt 0:01:19]} Rf8 {[%emt 0:04:36]} 35. Kg1 {[%emt 0:00:06]} g6 {[%emt 0:02:40]} 36. Kf1 {[%emt 0:00:31]} Kg7 {[%emt 0:00:05]} 37. Kg1 {[%emt 0:00:08]} Kh6 {[%emt 0:02:44]} 38. Kf1 {[%emt 0:00:40]} Nxc6 {[%emt 0:01:08]} 39. Qc4 {[%emt 0:02:09]} Na5 {[%emt 0:00:17]} 40. Qb4 {[%emt 0:00:38]} Nb7 {[%emt 0:00:24]} 41. a5 {[%emt 0:01:04]} Nc5 {[%emt 0:03:51]} 42. axb6 {[%emt 0:03:33]} cxb6 {[%emt 0:01:06]} 43. Qc4 {[%emt 0:05:36]} b5 {[%emt 0:01:08]} 44. Qa2 {[%emt 0:00:23]} Nxe4 {[%emt 0:01:07]} 45. Rxe4 {[%emt 0:00:07]} Rxe4 {[%emt 0:00:06]} 46. fxe4 {[%emt 0:00:05]} Qc1+ {[%emt 0:00:04]} 47. Ke2 {[%emt 0:00:10]} Rxf2+ {[%emt 0:00:04]} 48. Kxf2 {[%emt 0:00:10]} Qf4+ {[%emt 0:00:03]} 0-1

[Event "Reykjavik Open 2025"]
[Site "Reykjavik"]
[Date "2025.04.10"]
[Round "3.32"]
[White "Allard, Thomas"]
[Black "Kavutskiy, Kostya"]
[Result "0-1"]
[Annotator "ChessBase"]
[ECO "B32"]
[WhiteElo "2053"]
[BlackElo "2351"]
[PlyCount "62"]
[EventDate "2025.04.09"]
[EventType "swiss"]
[EventCountry "ISL"]
[SourceTitle "playchess.com"]
[Source "ChessBase"]
[SourceQuality "1"]
[TimeControl "40/5400+30:1800+30"]

1. e4 {[%emt 0:00:02]} c5 {[%emt 0:00:23]} 2. Nf3 {[%emt 0:00:06]} Nc6 {[%emt 0:00:17]} 3. d4 {[%emt 0:00:03]} cxd4 {[%emt 0:00:10]} 4. Nxd4 {[%emt 0:00:05]} e5 {[%emt 0:00:34]} 5. Nb5 {[%emt 0:00:46]} d6 {[%emt 0:00:09]} 6. N1c3 {[%emt 0:02:33]} a6 {[%emt 0:00:34]} 7. Na3 {[%emt 0:00:10]} Be6 {[%emt 0:00:22]} 8. Nc4 {[%emt 0:08:01]} Rb8 {[%emt 0:02:43]} 9. a4 {[%emt 0:07:06]} Nb4 {[%emt 0:12:51]} 10. Be3 {[%emt 0:14:21]} Nf6 {[%emt 0:03:53]} 11. Be2 {[%emt 0:06:59]} Qc7 {[%emt 0:07:28]} 12. Nd2 {[%emt 0:15:35]} d5 {[%emt 0:03:43]} 13. exd5 {[%emt 0:00:23]} Nfxd5 {[%emt 0:00:30]} 14. O-O {[%emt 0:04:07]} Nxe3 {[%emt 0:06:34]} 15. fxe3 {[%emt 0:00:04]} Bc5 {[%emt 0:00:45]} 16. Rf3 {[%emt 0:02:50]} Rd8 {[%emt 0:02:29]} 17. Qc1 {[%emt 0:00:55]} Bg4 {[%emt 0:05:45]} 18. Rg3 {[%emt 0:03:52]} Bxe2 {[%emt 0:00:11]} 19. Nxe2 {[%emt 0:00:04]} Nxc2 {[%emt 0:04:35]} 20. b4 {[%emt 0:01:53]} Nxa1 {[%emt 0:02:11]} 21. bxc5 {[%emt 0:00:44]} O-O {[%emt 0:01:55]} 22. Ne4 {[%emt 0:01:22]} Qc6 {[%emt 0:01:44]} 23. Qb1 {[%emt 0:10:47]} f5 {[%emt 0:04:54]} 24. Nd6 {[%emt 0:01:28]} Rd7 {[%emt 0:08:37]} 25. Qxa1 {[%emt 0:07:05]} Qxc5 {[%emt 0:01:28]} 26. Qa2+ {[%emt 0:03:15]} Kh8 {[%emt 0:00:10]} 27. Nc4 {[%emt 0:01:02]} b5 {[%emt 0:02:46]} 28. axb5 {[%emt 0:02:31]} axb5 {[%emt 0:00:08]} 29. Nd2 {[%emt 0:02:08]} f4 {[%emt 0:02:05]} 30. Rh3 {[%emt 0:04:27]} fxe3 {[%emt 0:00:56]} 31. Nf1 {[%emt 0:00:22]} Rxf1+ {[%emt 0:00:12]} 0-1

[Event "Reykjavik Open 2025"]
[Site "Reykjavik"]
[Date "2025.04.10"]
[Round "3.33"]
[White "Petersen, Marcel"]
[Black "Kilic, Eray"]
[Result "0-1"]
[Annotator "TA"]
[ECO "B51"]
[WhiteElo "2185"]
[BlackElo "2473"]
[PlyCount "84"]
[EventDate "2025.04.09"]
[EventType "swiss"]
[EventCountry "ISL"]
[SourceTitle "playchess.com"]
[Source "ChessBase"]
[SourceQuality "1"]
[TimeControl "40/5400+30:1800+30"]

{[%evp 19,83,-10,-7,-10,-12,-25,0,0,0,0,0,0,0,1,12,0,12,0,0,-8,-13,-11,-9,-31,-11,-25,16,10,63,64,84,79,97,99,118,128,120,103,116,119,155,-131,0,-264,-225,-226,-216,-264,-254,-359,-335,-443,-403,-29992,-29987,-29993,-29988,-29988,-29989,-29992,-29992,-29992,-29993,-29998,-29999,-29999]} 1. e4 {[%emt 0:00:02]} c5 {[%emt 0:00:05]} 2. Nf3 {[%emt 0:00:04]} d6 {[%emt 0:00:03]} 3. Bb5+ {[%emt 0:00:03]} Nd7 {[%emt 0:00:04]} 4. O-O {[%emt 0:00:06]} a6 {[%emt 0:00:03]} 5. Bxd7+ {[%emt 0:00:05]} Bxd7 {[%emt 0:00:05]} 6. c3 {[%emt 0:00:06]} Nf6 {[%emt 0:00:13]} 7. Re1 {[%emt 0:00:07]} Bc6 {[%emt 0:00:09]} 8. d4 {[%emt 0:00:06]} Bxe4 {[%emt 0:00:34]} 9. Bg5 {[%emt 0:00:06]} Bc6 {[%emt 0:00:09]} 10. Bxf6 {[%emt 0:01:02]} gxf6 {[%emt 0:00:05]} 11. d5 {[%emt 0:00:07] B51: Sicilian: Moscow Variation (3 Bb5+) without 3...Bd7.} Bd7 {[%emt 0:00:03]} 12. Nbd2 {[%emt 0:00:52][%cal Bb1d2,Bd2c4,Bc4e3][%mdl 32]} e5 {[%emt 0:04:13]} 13. dxe6 {[%emt 0:03:21] The position is equal.} Bxe6 {[%emt 0:04:32]} 14. Nc4 {[%emt 0:10:04] White sacrificed a pawn} d5 {[%emt 0:05:48] A sharp opening} 15. Ne3 {[%emt 0:00:44]} Qd6 $146 {[%emt 0:01:38]} (15... Be7 16. Qa4+ Qd7 17. Qxd7+ Kxd7 18. Nxd5 Bxd5 19. Rad1 Kc6 20. Rxe7 Rhe8 21. Rxe8 Rxe8 {0-1 Muzychuk,A (2561)-Edouard,R (2628) Cap d'Agde Karpov qual 5th rapid 2016 (3)}) 16. Qa4+ {[%emt 0:08:22]} Qc6 {[%emt 0:01:24]} 17. Qf4 {[%emt 0:00:11]} O-O-O {[%emt 0:01:05]} 18. Qxf6 {[%emt 0:00:46]} Rg8 {[%emt 0:00:12]} 19. Ne5 {[%emt 0:07:15]} Qc7 {[%emt 0:02:11]} 20. Nf5 {[%emt 0:00:17][%cal Ob2b4] Dodges Bg7} Kb8 {[%emt 0:02:49]} 21. b4 {[%emt 0:09:31]} cxb4 {[%emt 0:08:47]} 22. cxb4 {[%emt 0:00:08]} Rc8 {[%emt 0:00:16]} 23. a3 {[%emt 0:03:53]} Ka8 {[%emt 0:05:33]} (23... Qd8 $11 24. Qxd8 Rxd8) 24. g3 $14 {[%emt 0:06:16]} Re8 {[%emt 0:15:12]} 25. Rac1 {[%emt 0:05:06][%cal Ba1c1,Bc1c3,Bc3d3][%mdl 32] White has strong rooks and is better} Qb8 {[%emt 0:00:05]} 26. h4 {[%emt 0:08:19]} (26. Nxf7 Rg6 27. Rxe6 Rxf6 28. Rxf6 Rc8 29. Rxc8 Qxc8 $14) 26... Bd6 {[%emt 0:02:48] [#]} 27. Nxd6 {[%emt 0:02:53]} (27. Nxf7 Bxg3 (27... Rg6 $2 28. Qxg6 hxg6 29. N5xd6 $18) 28. Nxg3 (28. fxg3 $2 Rxg3+ 29. Nxg3 Qxg3+ 30. Kh1 Rg8 $19) 28... Rxg3+ 29. fxg3 Qxg3+ 30. Kh1 Rg8 $19) 27... Qxd6 {[%emt 0:00:03] Black is weak on the dark squares} 28. Rc3 {[%emt 0:03:16]} (28. Nxf7 Rxg3+ 29. fxg3 Qxg3+ 30. Kh1 Rg8 $19) 28... d4 {[%emt 0:02:09]} 29. Rd3 {[%emt 0:01:08][%cal Og1h2]} (29. Nxf7 $2 Qb8 30. Qxd4 Bxf7 $19) 29... Qc7 {[%emt 0:00:46]} 30. Red1 $2 {[%emt 0:06:02]} (30. Kh2 $16 {and life is bright.}) 30... Bc8 {[%emt 0:04:29]} (30... Ba2 $17 31. Rxd4 Rxe5 (31... Qxe5 $2 32. Rd8+ Rxd8 33. Rxd8+ Rxd8 34. Qxe5 $18)) 31. Nxf7 {[%emt 0:10:00][%mdl 8192]} (31. Qxf7 $2 Qxe5 32. b5 Be6 (32... Qxb5 $2 33. Rxd4 Bg4 34. Rb4 $19) 33. Qxh7 Bd5 $19 (33... axb5 $2 34. R3d2 $19) (33... Qxb5 $2 34. Rxd4 Bg4 35. Rc1 $19) (33... Bf5 $2 34. Qh5 $19)) (31. f4 $1 $11) 31... Ref8 {[%emt 0:06:07]} 32. Qxd4 {[%emt 0:02:20]} (32. Rf3 Bg4 33. Rdd3 Qc1+ 34. Kh2 Qf1 $19) 32... Qxf7 {[%emt 0:01:23]} 33. b5 {[%emt 0:00:39]} axb5 {[%emt 0:01:16]} 34. a4 {[%emt 0:01:20]} (34. Qb2 {is a better defense.}) 34... Rg4 $19 {[%emt 0:01:07]} 35. Qc5 {[%emt 0:00:27]} Rc4 {[%emt 0:00:57]} (35... bxa4 $2 {perishes.} 36. Rd8 Rc4 (36... Rxd8 $2 37. Rxd8 Rg8 38. Qxc8+ Ka7 39. Rxg8 $18) 37. Qxf8 (37. Rxf8 Rxc5 38. Rxf7 h5 $18) 37... Qxf8 38. Rxf8 $18) 36. Qxb5 {[%emt 0:03:29]} (36. Qb6 $19 Rc6 (36... bxa4 $2 37. Rd5 $19) (36... Rxa4 $2 37. Qc5 $19) 37. Qd4) 36... Qxf2+ {[%emt 0:00:36] Black mates.} 37. Kh1 {[%emt 0:00:05]} Re4 {[%emt 0:00:48]} 38. Qa5+ {[%emt 0:01:20]} Kb8 {[%emt 0:00:05]} 39. Rc1 {[%emt 0:01:13] [#]} Rxh4+ $1 {[%emt 0:00:36][%mdl 512]} 40. gxh4 {[%emt 0:00:27]} Qxh4+ {[%emt 0:00:04]} 41. Kg2 {[%emt 0:30:10]} Rf2+ {[%emt 0:30:05]} 42. Kg1 {[%emt 0:00:07]} Qh2# {[%emt 0:00:04] Weighted Error Value: White=0.54/Black=0.15 (very precise)   Loses game:     	White=1     	---        Mistake:       	White=3     	Black=2      Inaccurate:     	White=1     	Black=2      OK:         	White=10    	Black=8      Best:        	---       	Black=3} 0-1